bitfinex/quotes_ETHUSD_20240921
["timestamp","ask_amount","ask_price","bid_price","bid_amount"]
[1726932867680,2.8991,2562.1,2561.9,0.04223309]
[1726932868789,2.65678191,2562.6,2561.9,0.04223309]
[1726932868790,2.4953,2562.5,2562.1,3.90302]
[1726932868996,2.4953,2562.5,2562.2,3.90287]
[1726932869168,2.4953,2562.5,2562.2,0.04205708]
[1726932869378,0.639761,2562.4,2562.0,6.05846]
[1726932869564,0.639761,2562.4,2562.3,0.04201683]
[1726932869770,0.639761,2562.4,2562.0,6.05846]
[1726932869989,0.639761,2562.4,2562.1,0.0420352]
[1726932870501,0.639761,2562.4,2562.1,3.9450752]
[1726932872079,0.3135061,2562.3,2562.1,0.0420352]
[1726932880636,0.3135061,2562.3,2562.1,3.9449852]
[1726932880840,0.639761,2562.4,2562.1,3.9449852]
[1726932883555,0.639761,2562.4,2562.1,0.0420352]
[1726932884450,0.55,2562.3,2562.1,0.0420352]
[1726932887855,4.45282,2562.3,2562.1,0.0420352]
[1726932888022,0.55,2562.1,2561.7,3.90365]
[1726932888221,4.45304,2562.1,2561.7,3.90365]
[1726932889309,2.8876,2561.9,2561.5,3.90382]
[1726932891930,8.50395135,2561.9,2561.3,3.90415]
[1726932892132,0.55,2561.7,2561.3,3.90415]
[1726932895015,0.55,2561.7,2561.4,3.9041]
[1726932895628,0.55,2561.7,2561.5,0.04203165]
[1726932896021,6.24073,2562.1,2561.6,2.1554]
[1726932896222,6.24073,2562.1,2561.6,2.19742246]
[1726932896534,0.71402471,2562.0,2561.6,6.10107246]
[1726932897319,2.8876,2561.7,2561.6,0.04202246]
[1726932897751,0.55,2561.6,2561.3,3.90416]
[1726932899069,0.55,2561.6,2561.2,3.90426]
[1726932899276,0.55,2561.6,2561.2,7.80859]
[1726932899455,1.229117,2561.6,2561.2,7.80859]
[1726932899662,1.229117,2561.6,2561.2,3.90426]
[1726932900949,1.229117,2561.6,2561.3,3.90418]
[1726932901152,1.229117,2561.6,2561.3,3.90423]
[1726932902201,1.229117,2561.6,2561.4,2.1554]
[1726932902202,0.55,2561.6,2561.4,2.1554]
[1726932902403,0.55,2561.7,2561.4,2.1554]
[1726932902693,0.55,2561.7,2561.2,6.05966]
[1726932902869,0.55,2561.5,2561.2,3.90426]
[1726932904767,0.55,2561.5,2561.3,3.90426]
[1726932905092,8.25506655,2562.0,2561.6,3.9037]
[1726932905392,0.78197867,2561.9,2561.6,3.9037]
[1726932909374,0.78197867,2561.9,2561.6,7.80743]
[1726932909575,3.19442471,2562.0,2561.6,3.9037]
[1726932909770,0.55,2561.9,2561.6,3.9037]
[1726932912462,0.55,2561.9,2561.5,3.90388]
[1726932914100,0.55,2561.9,2561.6,3.90379]
[1726932915672,0.55,2561.9,2561.6,3.90372]
[1726932915888,0.37444247,2561.8,2561.6,3.90372]
[1726932916632,0.37444247,2561.8,2561.6,3.90371]
[1726932916837,0.55,2561.9,2561.6,3.90371]
[1726932920190,2.4444,2561.8,2561.4,3.90401]
[1726932920396,0.55,2561.7,2561.3,3.90426]
[1726932921231,0.55,2561.7,2561.4,3.9041]
[1726932921398,0.689795,2561.6,2561.4,3.9041]
[1726932921732,0.689795,2561.6,2561.4,3.90403]
[1726932921938,0.55,2561.7,2561.4,3.90403]
[1726932922859,0.55,2561.7,2561.5,3.90396]
[1726932923131,0.55,2561.8,2561.5,3.90396]
[1726932924750,0.55,2561.9,2561.5,3.90384]
[1726932926630,2.4444,2561.8,2561.5,3.90384]
[1726932926856,0.29944,2561.7,2561.5,3.90384]
[1726932927657,0.29944,2561.7,2561.5,7.80772]
[1726932928245,0.29944,2561.7,2561.5,3.90384]
[1726932929110,0.29944,2561.7,2561.5,7.80773]
[1726932929317,0.55,2561.9,2561.6,3.9038]
[1726932929511,7.50504184,2562.4,2561.9,6.05875]
[1726932929715,2.4444,2562.4,2562.0,3.90317]
[1726932931153,0.55,2562.3,2562.0,3.90317]
[1726932932057,0.55,2562.3,2562.1,0.09049014]
[1726932932262,0.55,2562.3,2562.0,3.90317]
[1726932932667,0.55,2562.3,2562.1,0.09028306]
[1726932932860,0.84944,2562.2,2562.1,0.09028306]
[1726932933022,0.84944,2562.2,2561.8,7.80679]
[1726932933221,0.84944,2562.2,2561.9,3.99361728]
[1726932936621,0.84944,2562.2,2561.9,0.09030728]
[1726932937825,2.4444,2562.1,2561.9,0.09030728]
[1726932938961,2.4444,2562.1,2561.9,3.99364728]
[1726932944456,2.773784,2562.1,2561.9,3.99364728]
[1726932945346,0.55,2562.2,2562.0,3.90319]
[1726932945787,0.55,2562.2,2562.1,0.09028996]
[1726932948383,2.4266,2562.5,2562.1,0.09028996]
[1726932948586,5.06064184,2562.7,2562.4,3.90259]
[1726932948791,0.54307101,2562.6,2562.4,3.90259]
[1726932949089,0.54307101,2562.6,2562.5,0.09022773]
[1726932949541,4.2720783,2562.8,2562.5,0.09022773]
[1726932949744,0.55,2562.7,2562.5,0.09022773]
[1726932949965,0.55,2562.7,2562.4,3.90249]
[1726932950182,0.55,2562.7,2562.6,0.09021562]
[1726932950419,0.55,2562.7,2562.5,0.09022773]
[1726932950600,1.27485783,2562.7,2562.6,0.09021562]
[1726932951111,1.27485783,2562.7,2562.6,0.09015697]
[1726932951604,1.27485783,2562.7,2562.4,3.90249]
[1726932951745,1.27485783,2562.7,2562.6,0.09015697]
[1726932951943,1.27485783,2562.7,2562.5,0.09016907]
[1726932952175,0.55469161,2562.6,2562.3,3.9027]
[1726932952656,1.27485783,2562.7,2562.4,3.90256]
[1726932954311,1.27485783,2562.7,2562.3,3.90274]
[1726932955195,1.27485783,2562.7,2562.4,3.90258]
[1726932955397,0.55,2562.7,2562.4,3.90258]
[1726932955825,0.55,2562.7,2562.5,0.09015182]
[1726932959935,0.55,2562.7,2562.6,0.09000862]
[1726932960277,0.55,2562.7,2562.2,6.0582]
[1726932960621,0.55,2562.7,2562.6,0.09000862]
[1726932960622,4.45221,2562.7,2562.6,0.09000862]
[1726932960827,3.90247,2562.5,2562.0,3.90317]
[1726932961120,2.2502,2562.4,2562.0,3.90317]
[1726932961304,0.55,2562.3,2561.9,3.90323]
[1726932961618,0.55,2562.3,2561.9,7.80649]
[1726932961828,1.610533,2562.3,2561.9,3.90323]
[1726932962033,0.55,2562.1,2561.3,2.1554]
[1726932962206,0.55,2561.9,2561.5,3.90387]
[1726932962635,4.45313,2562.1,2561.5,7.80774]
[1726932962958,0.55,2561.9,2561.6,3.90377]
[1726932963103,0.55,2562.1,2561.6,6.05917]
[1726932964036,4.45312,2562.1,2561.6,6.05917]
[1726932970743,4.45312,2562.1,2561.7,0.09012795]
[1726932972900,0.55,2562.1,2561.7,0.09012795]
[1726932973155,0.55,2562.1,2561.7,3.99377795]
[1726932973394,0.55,2562.1,2561.7,0.09012795]
[1726932973584,1.3263743,2562.1,2561.7,0.09012795]
[1726932974861,5.2294543,2562.1,2561.7,0.09012795]
[1726932975891,2.8002,2561.9,2561.7,0.09012795]
[1726932976401,6.70355,2561.9,2561.8,0.0902642]
[1726932976764,3.90351,2561.8,2561.3,3.90412]
[1726932976965,3.90351,2561.8,2561.2,2.1554]
[1726932976966,3.90382,2561.6,2561.2,2.1554]
[1726932977193,0.55,2561.5,2561.2,2.1554]
[1726932977370,0.55,2561.5,2561.1,3.90445]
[1726932979771,0.55,2561.5,2561.2,3.9044]
[1726932981503,0.55,2561.5,2561.3,3.90426]
[1726932981710,7.450902,2561.8,2561.3,3.90426]
[1726932981711,0.55,2561.7,2561.4,2.1554]
[1726932981910,1.2950902,2561.7,2561.4,2.1554]
[1726932982413,1.2950902,2561.7,2561.3,3.90426]
[1726932984496,5.1987502,2561.7,2561.3,3.90426]
[1726932985807,5.1987502,2561.7,2561.4,0.09057146]
[1726932985808,1.2950902,2561.7,2561.4,0.09057146]
[1726932988977,0.55,2561.7,2561.4,0.09057146]
[1726932989179,7.54734184,2562.0,2561.6,6.0591]
[1726932989624,7.54734184,2562.0,2561.7,0.09069044]
[1726932990822,0.55,2561.9,2561.7,0.09069044]
[1726932992823,5.06064184,2562.0,2561.7,5.70729179]
[1726932993029,3.06176987,2562.3,2561.9,1.71296135]
[1726932993219,3.06176987,2562.3,2561.9,5.61618135]
[1726932993423,2.4501,2562.3,2562.0,0.09055745]
[1726932993935,3.475625,2562.3,2562.0,0.09055745]
[1726932994298,0.55,2562.2,2562.0,0.09055745]
[1726932998645,0.55,2562.4,2562.1,3.90296]
[1726932998853,2.4501,2562.5,2562.1,3.90296]
[1726932999054,2.4501,2562.5,2562.2,0.09030202]
[1726932999941,2.4501,2562.5,2562.2,3.99309202]
[1726933001907,7.378005,2562.5,2562.2,0.09030202]
[1726933002361,0.55,2562.4,2562.2,0.09030202]
[1726933005252,0.55,2562.4,2562.0,6.05859]
[1726933005751,2.323,2562.3,2561.9,3.90325]
[1726933006065,0.8373,2562.2,2562.0,0.0879308]
[1726933007230,0.55,2562.2,2562.0,0.0879308]
[1726933014526,0.55,2562.2,2561.7,7.80711]
[1726933014723,0.55,2562.2,2562.1,0.08790486]
[1726933015038,0.55,2562.2,2561.8,3.90348]
[1726933015235,0.55,2562.2,2562.1,0.08790486]
[1726933015439,1.227575,2562.2,2561.8,3.90348]
[1726933015635,1.227575,2562.2,2562.1,0.08790486]
[1726933015863,1.227575,2562.2,2561.8,3.90348]
[1726933016025,1.227575,2562.2,2562.1,0.08790486]
[1726933016225,1.227575,2562.2,2561.8,3.90348]
[1726933016466,1.227575,2562.2,2562.1,0.08790486]
[1726933016651,1.227575,2562.2,2561.8,3.90348]
[1726933016828,1.227575,2562.2,2562.1,0.08790486]
[1726933017030,1.227575,2562.2,2561.8,3.90348]
[1726933017264,1.227575,2562.2,2562.1,0.08790486]
[1726933017464,1.227575,2562.2,2561.8,3.90348]
[1726933017669,1.227575,2562.2,2562.1,0.08790486]
[1726933017970,1.227575,2562.2,2561.8,3.90348]
[1726933018169,0.55,2562.2,2561.8,3.90348]
[1726933018550,0.55,2562.2,2561.9,0.08792908]
[1726933024470,2.2507,2562.0,2561.9,0.08792908]
[1726933024772,6.7039,2562.0,2561.9,0.08792908]
[1726933025069,0.55,2561.9,2561.5,3.90395]
[1726933025372,1.610695,2561.9,2561.5,3.90395]
[1726933026138,5.514045,2561.9,2561.5,3.90395]
[1726933027336,5.514045,2561.9,2561.4,6.0595]
[1726933027538,5.514045,2561.9,2561.3,3.90415]
[1726933027539,2.2507,2561.7,2561.3,3.90415]
[1726933027839,2.2507,2561.7,2561.3,7.80833]
[1726933028068,2.2507,2561.7,2561.4,3.9041]
[1726933028847,0.55,2561.8,2561.5,3.90395]
[1726933030687,0.55,2561.8,2561.6,0.08819319]
[1726933032704,0.55,2561.8,2561.4,3.9041]
[1726933032904,0.670409,2561.7,2561.4,3.9041]
[1726933033138,0.55,2561.8,2561.4,3.9041]
[1726933034964,0.55,2561.8,2561.4,5.61706135]
[1726933037667,0.55,2561.8,2561.5,3.90391]
[1726933041996,0.55,2561.5,2561.1,3.90446]
[1726933042273,3.90384,2561.6,2561.1,3.90446]
[1726933042274,0.55,2561.3,2561.1,3.90446]
[1726933042478,0.55,2561.5,2561.1,3.90446]
[1726933045567,0.55,2561.5,2561.2,0.08601123]
[1726933061245,0.55,2561.6,2561.3,2.1554]
[1726933061583,3.90361,2561.8,2561.4,0.08610783]
[1726933061584,0.55,2561.7,2561.4,0.08610783]
[1726933066584,1.29137679,2561.7,2561.4,0.08610783]
[1726933072015,1.29137679,2561.7,2561.4,3.99009783]
[1726933072216,0.55,2561.8,2561.4,3.99009783]
[1726933083420,0.55,2561.8,2561.4,0.08610783]
[1726933084415,4.4535,2561.8,2561.4,0.08610783]
[1726933086585,4.2535,2561.8,2561.4,0.08610783]
[1726933092235,4.45389,2561.6,2561.4,0.08610783]
[1726933092742,4.45389,2561.6,2561.5,0.08605773]
[1726933093030,4.45389,2561.6,2561.1,3.90449]
[1726933093288,4.45389,2561.6,2561.2,0.08609408]
[1726933093736,6.73646,2561.3,2561.2,0.08609408]
[1726933093903,7.63640214,2561.3,2561.2,0.08609408]
[1726933094095,4.45455,2561.2,2560.7,0.32846852]
[1726933094321,4.45487,2560.9,2560.8,0.08623924]
[1726933094556,6.73707,2560.9,2560.8,0.08623924]
[1726933094846,4.45549,2560.5,2560.0,3.90612]
[1726933095028,0.55,2560.5,2560.1,0.08632412]
[1726933095600,4.45554,2560.5,2560.1,0.08632412]
[1726933096342,0.55,2560.5,2560.1,0.08632412]
[1726933096902,0.55,2560.5,2560.1,3.99235412]
[1726933097514,0.55,2560.5,2560.1,0.08632412]
[1726933098140,2.2822,2560.4,2560.1,0.08632412]
[1726933098527,0.55,2560.3,2559.9,3.86836135]
[1726933098710,0.55,2560.3,2559.9,2.1554]
[1726933098914,0.55,2560.3,2560.0,0.08633625]
[1726933103015,0.55,2560.3,2560.0,3.99252625]
[1726933104785,2.4615,2560.6,2560.2,3.90594]
[1726933105081,0.55,2560.5,2560.3,0.08679036]
[1726933105236,0.55,2560.5,2560.1,7.77434135]
[1726933105579,0.55,2560.5,2560.2,0.08680249]
[1726933105738,0.55,2560.5,2560.2,3.99273249]
[1726933111737,0.55,2560.5,2560.3,3.90577]
[1726933111973,0.55,2560.5,2560.3,7.81154]
[1726933112180,2.4615,2560.6,2560.4,0.08710639]
[1726933112382,2.4615,2560.6,2560.4,3.99271639]
[1726933112563,2.84,2560.8,2560.4,3.99271639]
[1726933112765,2.84,2560.8,2560.4,0.08710639]
[1726933112766,7.92558218,2560.8,2560.4,0.08710639]
[1726933114189,8.53754759,2560.8,2560.4,0.08710639]
[1726933125468,4.63250759,2560.8,2560.4,0.08710639]
[1726933127091,3.45196541,2560.8,2560.4,0.08710639]
[1726933133316,3.45196541,2560.8,2560.2,3.90591]
[1726933133467,3.45196541,2560.8,2560.3,0.08698722]
[1726933133668,3.45196541,2560.8,2560.2,3.90591]
[1726933133868,3.45196541,2560.8,2560.3,0.08698722]
[1726933134198,0.55,2560.6,2560.2,3.90591]
[1726933134501,0.55,2560.6,2560.3,0.08698722]
[1726933134747,0.55,2560.6,2560.2,3.90591]
[1726933134888,0.55,2560.6,2560.4,0.08697509]
[1726933135222,0.55,2560.6,2560.2,3.90591]
[1726933135427,2.90196541,2560.8,2560.7,3.90518]
[1726933135428,0.61196541,2560.8,2560.7,3.90518]
[1726933135630,0.40808037,2561.4,2561.3,3.90426]
[1726933135920,0.3321588,2561.9,2561.7,3.90353]
[1726933136092,0.3321588,2561.9,2561.8,3.99018796]
[1726933136299,0.3321588,2561.9,2561.8,6.14558796]
[1726933137999,0.3321588,2561.9,2561.8,0.08668796]
[1726933138509,0.3321588,2561.9,2561.8,0.08610081]
[1726933138686,0.3321588,2561.9,2561.7,3.90356]
[1726933138882,0.3321588,2561.9,2561.8,3.98960081]
[1726933139086,0.3321588,2561.9,2561.8,6.14500081]
[1726933145224,0.3321588,2561.9,2561.8,3.98960081]
[1726933146610,0.3321588,2561.9,2561.8,0.08610081]
[1726933147010,0.55,2561.8,2561.6,3.90371]
[1726933148709,2.8431,2561.8,2561.2,7.80867]
[1726933148950,2.8431,2561.8,2561.2,3.90432]
[1726933148951,3.33192202,2561.8,2561.2,3.90432]
[1726933149251,3.33192202,2561.8,2561.3,3.90418]
[1726933150824,3.33192202,2561.8,2561.4,0.08245602]
[1726933151231,3.66408082,2561.8,2561.4,0.08245602]
[1726933153817,0.55,2561.6,2561.4,0.08245602]
[1726933156945,0.55,2561.7,2561.4,3.98653602]
[1726933158467,2.2931,2561.8,2561.5,3.90395]
[1726933158668,2.2931,2562.1,2561.7,3.90364]
[1726933158984,2.2931,2562.1,2561.8,0.08268025]
[1726933159566,2.2931,2562.1,2561.9,0.08266814]
[1726933159923,0.55,2562.0,2561.7,3.90364]
[1726933160267,0.55,2562.0,2561.8,0.08268025]
[1726933160760,0.55,2562.0,2561.9,0.08266814]
[1726933162123,0.55,2562.0,2561.7,7.80721]
[1726933162429,0.55,2562.0,2561.8,0.08262502]
[1726933162866,0.55,2562.0,2561.7,3.90357]
[1726933163170,0.55,2562.0,2561.8,0.08262502]
[1726933163522,0.55,2562.0,2561.7,7.80713]
[1726933163721,0.55,2562.0,2561.8,0.08262502]
[1726933163920,0.55,2562.0,2561.7,7.80713]
[1726933164358,0.55,2562.0,2561.8,0.08262502]
[1726933164555,0.55,2562.0,2561.7,7.80713]
[1726933164747,0.55,2562.0,2561.8,0.08262502]
[1726933164934,0.55,2562.0,2561.7,3.90356]
[1726933165155,0.55,2562.0,2561.8,0.08262502]
[1726933165357,0.55,2562.0,2561.7,3.90356]
[1726933165723,0.55,2562.0,2561.8,0.08262502]
[1726933166037,0.55,2562.0,2561.7,3.90356]
[1726933166239,0.55,2562.0,2561.9,0.0826129]
[1726933166445,0.55,2562.0,2561.8,0.08262502]
[1726933166646,0.55,2562.0,2561.9,0.0826129]
[1726933167555,0.55,2562.0,2561.7,3.90356]
[1726933167725,0.55,2562.0,2561.8,0.08262502]
[1726933167927,0.55,2562.0,2561.7,3.90356]
[1726933168240,0.55,2562.0,2561.8,0.08262502]
[1726933168765,0.55,2562.0,2561.9,0.0826129]
[1726933168950,0.55,2562.0,2561.7,3.90356]
[1726933169150,0.55,2562.0,2561.8,0.08262502]
[1726933169351,0.55,2562.0,2561.7,3.90356]
[1726933169553,0.55,2562.0,2561.8,0.08262502]
[1726933169755,0.83431,2562.0,2561.7,3.90356]
[1726933169944,0.83431,2562.0,2561.8,0.08262502]
[1726933170270,0.83431,2562.0,2561.7,3.90356]
[1726933170430,0.83431,2562.0,2561.9,0.08248518]
[1726933170928,0.83431,2562.0,2561.7,3.90356]
[1726933171129,0.83431,2562.0,2561.8,0.08249729]
[1726933171362,0.55,2561.8,2561.7,3.90356]
[1726933171529,0.55,2561.8,2561.7,3.9860694]
[1726933171739,0.55,2562.0,2561.7,3.9860694]
[1726933180801,0.3321588,2562.3,2562.2,3.90289]
[1726933181012,2.6247588,2562.7,2562.4,3.90251]
[1726933181284,0.3321588,2562.6,2562.4,3.90251]
[1726933181493,0.3321588,2562.6,2562.5,0.08244702]
[1726933181991,0.3321588,2562.6,2562.5,3.98487702]
[1726933182196,0.3321588,2562.7,2562.6,6.05768]
[1726933182654,0.3321588,2562.7,2562.6,6.14001482]
[1726933183183,0.8821588,2562.7,2562.6,6.14001482]
[1726933184072,0.3321588,2562.7,2562.6,6.14001482]
[1726933189273,0.3321588,2562.7,2562.6,0.08233482]
[1726933189274,0.8821588,2562.7,2562.6,0.08233482]
[1726933191497,0.55,2562.6,2562.4,3.90255]
[1726933192061,0.55,2562.6,2562.3,9.96073]
[1726933192373,0.55,2562.6,2562.2,3.90278]
[1726933192575,2.8426,2562.6,2562.2,3.90278]
[1726933195615,2.8426,2562.6,2562.3,0.08190184]
[1726933206444,0.0379095,2562.8,2562.5,2.1554]
[1726933206929,0.0379095,2562.8,2562.6,0.08193797]
[1726933215246,2.826,2562.7,2562.6,0.08193797]
[1726933215559,0.55,2562.7,2562.6,0.08193797]
[1726933216123,0.55,2562.7,2562.4,3.90258]
[1726933216347,0.55,2562.7,2562.6,0.08193107]
[1726933218260,0.0379095,2562.8,2562.6,6.13950107]
[1726933218787,0.0379095,2562.8,2562.6,6.13959107]
[1726933220179,0.0379095,2562.8,2562.7,3.90213]
[1726933220481,0.0379095,2562.8,2562.7,3.98399377]
[1726933222854,0.0379095,2562.8,2562.7,0.08186377]
[1726933224383,4.4898895,2562.8,2562.7,0.08186377]
[1726933224586,7.45327459,2562.8,2562.7,0.08186377]
[1726933224907,7.45327459,2562.8,2561.8,8.61642135]
[1726933224908,0.55,2562.3,2561.8,2.1554]
[1726933225107,0.55,2562.5,2562.3,3.90274]
[1726933225675,0.55,2562.5,2562.4,0.08183799]
[1726933226103,0.55,2562.5,2562.2,3.9028]
[1726933226258,0.55,2562.5,2562.4,0.08183799]
[1726933226465,0.55,2562.5,2562.3,0.08185009]
[1726933226685,0.55,2562.5,2562.4,0.08183799]
[1726933227003,0.55,2562.5,2562.2,3.9028]
[1726933227173,0.55,2562.5,2562.3,0.08185009]
[1726933228811,0.55,2562.5,2562.4,0.08183799]
[1726933229097,0.55,2562.5,2562.1,3.90299]
[1726933229303,0.55,2562.5,2562.4,0.08183799]
[1726933229482,0.55,2562.5,2562.2,3.90287]
[1726933229684,0.55,2562.5,2562.4,0.08183799]
[1726933229902,0.55,2562.5,2562.3,0.08185009]
[1726933230102,0.55,2562.5,2562.4,0.08183799]
[1726933230502,0.55,2562.5,2562.2,3.90287]
[1726933230707,0.55,2562.5,2562.4,0.08190699]
[1726933230879,0.55,2562.5,2562.3,0.08191909]
[1726933231080,0.55,2562.5,2562.4,0.08190699]
[1726933231383,0.55,2562.5,2562.2,3.90287]
[1726933231696,0.55,2562.5,2562.3,0.08191909]
[1726933232199,0.55,2562.5,2562.3,0.13298827]
[1726933232789,0.55,2562.5,2562.1,3.90304]
[1726933233030,4.45285,2562.3,2562.2,0.13310273]
[1726933233323,0.55,2562.1,2561.8,3.9035]
[1726933233683,4.45307,2562.1,2561.6,3.90369]
[1726933233888,0.55,2562.1,2561.7,3.90365]
[1726933235423,0.55,2562.1,2561.8,3.90342]
[1726933239945,0.55,2562.1,2562.0,3.9032]
[1726933240131,2.3431,2562.4,2562.1,3.90296]
[1726933240500,7.34244184,2562.6,2562.2,3.9028]
[1726933240712,7.34244184,2562.6,2562.2,4.03624439]
[1726933241336,7.34244184,2562.6,2562.2,4.03622439]
[1726933241707,0.55,2562.5,2562.2,4.03622439]
[1726933245144,0.55,2562.7,2562.5,3.90232]
[1726933245302,0.0379095,2562.8,2562.6,3.90228]
[1726933245514,0.0379095,2562.8,2562.7,3.90213]
[1726933245950,0.0379095,2562.8,2562.7,4.03540036]
[1726933246618,0.0379095,2562.8,2562.7,0.13327036]
[1726933247236,0.0379095,2562.8,2562.7,4.03540036]
[1726933251759,0.0379095,2562.8,2562.7,0.13327036]
[1726933253221,0.5879095,2562.8,2562.7,0.13327036]
[1726933253420,0.55,2562.7,2562.5,3.90235]
[1726933253658,0.55,2562.7,2562.6,0.13302565]
[1726933254663,2.8318,2562.7,2562.6,0.13302565]
[1726933258766,0.55,2562.7,2562.6,0.13302565]
[1726933260484,3.0349,2562.7,2562.6,0.13302565]
[1726933260774,3.80008015,2562.7,2562.6,0.13302565]
[1726933261076,3.80008015,2562.7,2562.6,0.1328773]
[1726933261485,3.80008015,2562.7,2562.4,3.90249]
[1726933261682,3.80008015,2562.7,2562.6,0.1328773]
[1726933261980,3.80008015,2562.7,2562.5,0.1328914]
[1726933262181,3.80008015,2562.7,2562.6,0.1328773]
[1726933262680,3.0349,2562.7,2562.6,0.1329601]
[1726933262868,3.0349,2562.7,2562.4,3.90249]
[1726933263041,3.0349,2562.7,2562.5,0.1329742]
[1726933274392,3.0349,2562.7,2562.5,4.0354042]
[1726933275979,3.0349,2562.7,2562.5,0.1329742]
[1726933276178,0.92499515,2562.6,2562.5,0.1329742]
[1726933276389,0.92499515,2562.6,2562.4,3.90251]
[1726933276684,0.92499515,2562.6,2562.5,0.13300869]
[1726933279099,0.55,2562.6,2562.5,0.13300869]
[1726933282504,0.55,2562.6,2562.5,4.03543869]
[1726933282710,0.0379095,2562.8,2562.7,3.90213]
[1726933283063,0.0379095,2562.8,2562.7,4.03511395]
[1726933288755,0.0379095,2562.8,2562.7,0.13298395]
[1726933288877,0.5879095,2562.8,2562.7,0.13298395]
[1726933289072,3.29506045,2562.8,2562.7,0.13298395]
[1726933289290,0.55,2562.7,2562.4,7.80499]
[1726933289591,0.55,2562.7,2562.5,3.90243]
[1726933290172,0.55,2562.7,2562.4,7.805]
[1726933291173,0.55,2562.7,2562.5,3.90243]
[1726933294903,0.0379095,2562.8,2562.6,3.90215]
[1726933296455,0.0379095,2562.8,2562.6,7.80435]
[1726933296819,0.0379095,2562.8,2562.6,3.90215]
[1726933300720,0.5879095,2562.8,2562.7,0.13286665]
[1726933303462,0.5879095,2562.8,2562.7,2.28826665]
[1726933303660,0.0379095,2562.8,2562.7,6.19039665]
[1726933309621,0.0379095,2562.8,2562.7,4.03499665]
[1726933322449,2.8765095,2562.8,2562.7,0.13286665]
[1726933324374,0.5879095,2562.8,2562.7,4.03499665]
[1726933324664,0.5879095,2562.8,2562.7,0.13286665]
[1726933327372,3.16416045,2562.8,2562.7,0.13286665]
[1726933333399,0.55,2562.7,2562.5,3.90235]
[1726933337082,0.55,2562.7,2562.3,2.1554]
[1726933337269,0.55,2562.7,2562.4,3.90252]
[1726933337689,0.55,2562.7,2562.4,7.80502]
[1726933337890,0.55,2562.7,2562.5,3.90243]
[1726933338327,0.55,2562.7,2561.9,3.78505531]
[1726933338328,3.90263,2562.4,2561.9,3.78505531]
[1726933338471,0.55,2562.1,2561.7,2.1554]
[1726933338817,2.3125,2561.8,2561.4,6.05941]
[1726933339020,2.3125,2561.8,2561.4,3.90401]
[1726933339509,2.3125,2561.8,2561.4,3.90402]
[1726933339670,2.3125,2561.8,2561.2,2.1554]
[1726933339671,0.55,2561.7,2561.2,2.1554]
[1726933339868,0.55,2561.7,2561.2,3.90429]
[1726933340304,0.55,2561.7,2561.3,3.90422]
[1726933340510,0.55,2561.7,2561.2,7.80859]
[1726933340511,1.226589,2561.7,2561.2,7.80859]
[1726933340674,1.226589,2561.7,2561.2,3.90429]
[1726933341819,1.226589,2561.7,2561.3,3.90415]
[1726933342178,1.226589,2561.7,2561.2,3.90429]
[1726933342512,1.226589,2561.7,2561.2,7.80861]
[1726933343299,1.226589,2561.7,2561.3,3.90424]
[1726933343693,1.226589,2561.7,2561.5,1.71296135]
[1726933344792,0.9039089,2561.6,2561.5,1.71296135]
[1726933346023,0.9039089,2561.6,2561.5,1.83495844]
[1726933346232,0.55,2561.6,2561.5,1.83495844]
[1726933347318,0.55,2561.7,2561.5,1.83495844]
[1726933353042,2.3125,2561.8,2561.5,1.83495844]
[1726933353201,2.3125,2561.8,2561.7,1.71296135]
[1726933353700,2.3125,2561.8,2561.7,1.83529079]
[1726933354198,2.8625,2561.8,2561.7,1.83529079]
[1726933360106,0.55,2561.9,2561.7,1.83529079]
[1726933360639,0.55,2561.9,2561.8,3.9035]
[1726933360804,0.55,2561.9,2561.7,5.73893079]
[1726933361010,0.55,2561.9,2561.8,0.12264154]
[1726933361210,0.55,2561.9,2561.7,1.71296135]
[1726933361457,0.55,2561.9,2561.8,0.12264154]
[1726933361810,0.55,2561.9,2561.7,5.61661135]
[1726933362006,0.55,2561.9,2561.8,0.12264154]
[1726933362211,0.83687,2561.9,2561.7,1.71296135]
[1726933362449,0.83687,2561.9,2561.8,0.12264154]
[1726933362849,0.83687,2561.9,2561.7,1.71296135]
[1726933363150,0.83687,2561.9,2561.8,0.12264154]
[1726933363314,0.83687,2561.9,2561.7,1.71296135]
[1726933363714,0.83687,2561.9,2561.8,0.12256597]
[1726933364153,0.83687,2561.9,2561.7,1.71296135]
[1726933364350,0.83687,2561.9,2561.8,0.12256597]
[1726933364652,0.83687,2561.9,2561.7,1.71296135]
[1726933364858,0.83687,2561.9,2561.8,0.12256597]
[1726933365220,0.83687,2561.9,2561.7,1.71296135]
[1726933365416,0.83687,2561.9,2561.8,0.12256597]
[1726933365737,0.83687,2561.9,2561.7,1.71296135]
[1726933365943,0.83687,2561.9,2561.8,0.12256597]
[1726933366254,0.83687,2561.9,2561.7,1.71296135]
[1726933366553,0.83687,2561.9,2561.8,0.12256597]
[1726933367260,0.83687,2561.9,2561.7,1.71296135]
[1726933367415,0.83687,2561.9,2561.8,0.12256597]
[1726933367616,0.83687,2561.9,2561.7,1.71296135]
[1726933367820,0.83687,2561.9,2561.8,0.12256597]
[1726933368130,0.83687,2561.9,2561.7,1.71296135]
[1726933368343,0.83687,2561.9,2561.8,0.12256597]
[1726933368660,0.83687,2561.9,2561.7,1.71296135]
[1726933368865,0.83687,2561.9,2561.8,0.12256597]
[1726933369354,0.83687,2561.9,2561.7,1.71296135]
[1726933369547,0.83687,2561.9,2561.8,0.12256597]
[1726933369875,0.83687,2561.9,2561.7,1.71296135]
[1726933370158,0.83687,2561.9,2561.8,0.12256597]
[1726933370325,0.83687,2561.9,2561.7,1.71296135]
[1726933370726,0.83687,2561.9,2561.8,0.12256597]